[Event "Titled Tuesday Blitz May 16 Early 2023"]
[White "Manukyan, Sargis A."]
[Black "Pichot, Alan"]
[WhiteFideId "13303970"]
[BlackFideId "110973"]
[WhiteElo "2187"]
[BlackElo "2573"]
[Result "0-1"]
[Round "07"]
[TimeControl "180+2"]
[Date "2023.05.16"]
[WhiteClock "0:00:06"]
[BlackClock "0:00:51"]

1. d4 {[%clk 0:03:00]}  Nf6 {[%clk 0:02:59]} 2. c4 {[%clk 0:03:01]}  e6 {[%clk 0:03:00]} 3. Nc3 {[%clk 0:03:01]}  Bb4 {[%clk 0:03:00]} 4. a3 {[%clk 0:03:02]}  Bxc3+ {[%clk 0:02:59]} 5. bxc3 {[%clk 0:03:03]}  O-O {[%clk 0:02:57]} 6. e3 {[%clk 0:03:03]}  d5 {[%clk 0:02:55]} 7. cxd5 {[%clk 0:03:03]}  exd5 {[%clk 0:02:55]} 8. Bd3 {[%clk 0:03:03]}  c5 {[%clk 0:02:55]} 9. Ne2 {[%clk 0:03:03]}  b6 {[%clk 0:02:53]} 10. O-O {[%clk 0:03:02]}  Ba6 {[%clk 0:02:54]} 11. f3 {[%clk 0:03:02]}  Re8 {[%clk 0:02:53]} 12. Ra2 {[%clk 0:03:01]}  Qc8 {[%clk 0:02:51]} 13. g4 {[%clk 0:02:59]}  Bxd3 {[%clk 0:02:49]} 14. Qxd3 {[%clk 0:02:58]}  Qa6 {[%clk 0:02:50]} 15. Qd1 {[%clk 0:02:51]}  Nc6 {[%clk 0:02:46]} 16. Ng3 {[%clk 0:02:51]}  Qc4 {[%clk 0:02:42]} 17. Rg2 {[%clk 0:02:24]}  Qxc3 {[%clk 0:02:32]} 18. g5 {[%clk 0:02:25]}  Nd7 {[%clk 0:02:30]} 19. dxc5 {[%clk 0:02:24]}  Nxc5 {[%clk 0:02:22]} 20. Qxd5 {[%clk 0:02:19]}  Ne5 {[%clk 0:02:18]} 21. Qd4 {[%clk 0:01:41]}  Nxf3+ {[%clk 0:02:08]} 22. Rxf3 {[%clk 0:01:39]}  Qxc1+ {[%clk 0:02:08]} 23. Nf1 {[%clk 0:01:33]}  Rad8 {[%clk 0:02:08]} 24. Qf4 {[%clk 0:01:32]}  Rd7 {[%clk 0:02:04]} 25. h4 {[%clk 0:01:21]}  Nd3 {[%clk 0:01:52]} 26. Qa4 {[%clk 0:01:01]}  Rde7 {[%clk 0:01:40]} 27. h5 {[%clk 0:00:58]}  Ne1 {[%clk 0:01:37]} 28. Rxf7 {[%clk 0:00:31]}  Nxg2 {[%clk 0:01:16]} 29. Rxe7 {[%clk 0:00:27]}  Rxe7 {[%clk 0:01:17]} 30. Kxg2 {[%clk 0:00:23]}  Qb2+ {[%clk 0:01:14]} 31. Kg1 {[%clk 0:00:15]}  Qe5 {[%clk 0:01:12]} 32. Qc4+ {[%clk 0:00:15]}  Qe6 {[%clk 0:01:10]} 33. Qf4 {[%clk 0:00:13]}  Rf7 {[%clk 0:01:09]} 34. Qb8+ {[%clk 0:00:13]}  Rf8 {[%clk 0:01:10]} 35. Qg3 {[%clk 0:00:11]}  Qf5 {[%clk 0:01:07]} 36. Nh2 {[%clk 0:00:10]}  Qb1+ {[%clk 0:01:05]} 37. Kg2 {[%clk 0:00:10]}  Qb2+ {[%clk 0:01:05]} 38. Kh3 {[%clk 0:00:10]}  Qf2 {[%clk 0:01:02]} 39. Qg4 {[%clk 0:00:10]}  Qxe3+ {[%clk 0:01:02]} 40. Kg2 {[%clk 0:00:06]}  Rf2+ {[%clk 0:01:00]} 41. Kh1 {[%clk 0:00:03]}  Qe1+ {[%clk 0:01:00]} 42. Qg1 {[%clk 0:00:04]}  Qxg1+ {[%clk 0:01:00]} 43. Kxg1 {[%clk 0:00:05]}  Rxh2 {[%clk 0:00:54]} 44. Kxh2 {[%clk 0:00:05]}  Kf7 {[%clk 0:00:54]} 45. Kg3 {[%clk 0:00:05]}  Ke6 {[%clk 0:00:53]} 46. Kf4 {[%clk 0:00:05]}  b5 {[%clk 0:00:53]} 47. g6 {[%clk 0:00:06]}  hxg6 {[%clk 0:00:52]} 48. h6 {[%clk 0:00:06]}  gxh6 {[%clk 0:00:51]} 0-1


[Site "https://www.chess.com"]

[Event "Titled Tuesday Blitz May 16 Early 2023"]
[White "Korchmar, Vasiliy"]
[Black "Shimanov, Aleksandr"]
[WhiteFideId "24131750"]
[BlackFideId "4198603"]
[WhiteElo "2370"]
[BlackElo "2631"]
[Result "0-1"]
[Round "07"]
[TimeControl "180+2"]
[Date "2023.05.16"]
[WhiteClock "0:00:00"]
[BlackClock "0:00:04"]

1. e4 {[%clk 0:02:59]}  e6 {[%clk 0:02:56]} 2. d4 {[%clk 0:02:59]}  d5 {[%clk 0:02:56]} 3. e5 {[%clk 0:02:59]}  c5 {[%clk 0:02:56]} 4. c3 {[%clk 0:03:00]}  Qa5 {[%clk 0:02:56]} 5. Nf3 {[%clk 0:02:52]}  Nc6 {[%clk 0:02:54]} 6. a3 {[%clk 0:02:25]}  Nxd4 {[%clk 0:02:48]} 7. Nxd4 {[%clk 0:02:19]}  cxd4 {[%clk 0:02:47]} 8. Qxd4 {[%clk 0:02:03]}  Ne7 {[%clk 0:02:44]} 9. Bd3 {[%clk 0:02:01]}  Nc6 {[%clk 0:02:43]} 10. Qe3 {[%clk 0:01:40]}  d4 {[%clk 0:02:26]} 11. Qg3 {[%clk 0:01:11]}  Nxe5 {[%clk 0:01:42]} 12. O-O {[%clk 0:00:56]}  Nxd3 {[%clk 0:01:39]} 13. Qxd3 {[%clk 0:00:57]}  dxc3 {[%clk 0:01:39]} 14. Nxc3 {[%clk 0:00:58]}  Be7 {[%clk 0:01:40]} 15. Qb5+ {[%clk 0:00:34]}  Qxb5 {[%clk 0:01:39]} 16. Nxb5 {[%clk 0:00:35]}  O-O {[%clk 0:01:27]} 17. Rd1 {[%clk 0:00:16]}  b6 {[%clk 0:01:17]} 18. Bf4 {[%clk 0:00:12]}  f6 {[%clk 0:01:13]} 19. Nc7 {[%clk 0:00:11]}  Rb8 {[%clk 0:00:21]} 20. Nb5 {[%clk 0:00:11]}  Rb7 {[%clk 0:00:20]} 21. Nd6 {[%clk 0:00:11]}  Bxd6 {[%clk 0:00:18]} 22. Rxd6 {[%clk 0:00:12]}  Re8 {[%clk 0:00:19]} 23. Rad1 {[%clk 0:00:08]}  e5 {[%clk 0:00:19]} 24. Be3 {[%clk 0:00:08]}  Be6 {[%clk 0:00:19]} 25. h4 {[%clk 0:00:06]}  Kf7 {[%clk 0:00:19]} 26. Rc1 {[%clk 0:00:05]}  Ke7 {[%clk 0:00:15]} 27. Rdc6 {[%clk 0:00:05]}  Rd8 {[%clk 0:00:14]} 28. a4 {[%clk 0:00:05]}  Bd7 {[%clk 0:00:13]} 29. Rc7 {[%clk 0:00:04]}  Rdb8 {[%clk 0:00:13]} 30. a5 {[%clk 0:00:03]}  bxa5 {[%clk 0:00:12]} 31. Bxa7 {[%clk 0:00:04]}  Rxc7 {[%clk 0:00:10]} 32. Rxc7 {[%clk 0:00:05]}  Rxb2 {[%clk 0:00:10]} 33. Bc5+ {[%clk 0:00:05]}  Ke8 {[%clk 0:00:10]} 34. Ra7 {[%clk 0:00:06]}  Rb5 {[%clk 0:00:11]} 35. Ba3 {[%clk 0:00:02]}  Rd5 {[%clk 0:00:11]} 36. h5 {[%clk 0:00:02]}  a4 {[%clk 0:00:06]} 37. Ra8+ {[%clk 0:00:03]}  Kf7 {[%clk 0:00:07]} 38. Rf8+ {[%clk 0:00:03]}  Ke6 {[%clk 0:00:07]} 39. Rg8 {[%clk 0:00:03]}  Rd3 {[%clk 0:00:08]} 40. Bb4 {[%clk 0:00:02]}  Rb3 {[%clk 0:00:08]} 41. Bc5 {[%clk 0:00:01]}  Rc3 {[%clk 0:00:08]} 42. Bb4 {[%clk 0:00:02]}  Rc1+ {[%clk 0:00:09]} 43. Kh2 {[%clk 0:00:02]}  Rc4 {[%clk 0:00:10]} 44. Ba3 {[%clk 0:00:02]}  Rg4 {[%clk 0:00:05]} 45. Ra8 {[%clk 0:00:01]}  Rh4+ {[%clk 0:00:05]} 46. Kg3 {[%clk 0:00:01]}  Rxh5 {[%clk 0:00:05]} 47. Ra6+ {[%clk 0:00:02]}  Kf7 {[%clk 0:00:05]} 48. Ra7 {[%clk 0:00:02]}  Ke6 {[%clk 0:00:04]} 49. Ra6+ {[%clk 0:00:03]}  Kf7 {[%clk 0:00:05]} 50. Ra7 {[%clk 0:00:03]}  Rg5+ {[%clk 0:00:05]} 51. Kh2 {[%clk 0:00:02]}  Ke6 {[%clk 0:00:05]} 52. Ra6+ {[%clk 0:00:02]}  Kf5 {[%clk 0:00:05]} 53. Ra7 {[%clk 0:00:01]}  Bb5 {[%clk 0:00:05]} 54. f3 {[%clk 0:00:01]}  Bf1 {[%clk 0:00:05]} 55. g4+ {[%clk 0:00:00]}  Ke6 {[%clk 0:00:04]} 0-1


[Site "https://www.chess.com"]

[Event "Titled Tuesday Blitz May 16 Early 2023"]
[White "Novik, Maxim"]
[Black "Rodshtein, Maxim"]
[WhiteFideId "4102924"]
[BlackFideId "2806851"]
[WhiteElo "2287"]
[BlackElo "2555"]
[Result "1-0"]
[Round "07"]
[TimeControl "180+2"]
[Date "2023.05.16"]
[WhiteClock "0:00:06"]
[BlackClock "0:00:00"]

1. d4 {[%clk 0:03:00]}  e6 {[%clk 0:02:58]} 2. c4 {[%clk 0:02:58]}  f5 {[%clk 0:02:57]} 3. g3 {[%clk 0:02:57]}  Nf6 {[%clk 0:02:56]} 4. Bg2 {[%clk 0:02:58]}  c6 {[%clk 0:02:57]} 5. Nh3 {[%clk 0:02:57]}  Be7 {[%clk 0:02:56]} 6. O-O {[%clk 0:02:56]}  O-O {[%clk 0:02:55]} 7. Nf4 {[%clk 0:02:55]}  d5 {[%clk 0:02:55]} 8. Nd2 {[%clk 0:02:52]}  Bd6 {[%clk 0:02:49]} 9. Nd3 {[%clk 0:02:50]}  Nbd7 {[%clk 0:02:48]} 10. Qc2 {[%clk 0:02:49]}  Qe7 {[%clk 0:02:39]} 11. Nf3 {[%clk 0:02:49]}  b6 {[%clk 0:02:34]} 12. b3 {[%clk 0:02:46]}  Bb7 {[%clk 0:02:33]} 13. Bb2 {[%clk 0:02:47]}  Rac8 {[%clk 0:02:32]} 14. Rac1 {[%clk 0:02:47]}  Ne4 {[%clk 0:02:32]} 15. e3 {[%clk 0:02:45]}  g5 {[%clk 0:02:14]} 16. Rfd1 {[%clk 0:02:43]}  g4 {[%clk 0:02:13]} 17. Nfe5 {[%clk 0:02:43]}  Nxe5 {[%clk 0:02:08]} 18. dxe5 {[%clk 0:02:37]}  Bb8 {[%clk 0:02:08]} 19. Nf4 {[%clk 0:02:31]}  Ng5 {[%clk 0:01:59]} 20. Qe2 {[%clk 0:02:18]}  Nf7 {[%clk 0:01:27]} 21. Nd3 {[%clk 0:02:15]}  dxc4 {[%clk 0:01:13]} 22. bxc4 {[%clk 0:02:13]}  c5 {[%clk 0:01:13]} 23. h4 {[%clk 0:01:57]}  Bxg2 {[%clk 0:01:00]} 24. Kxg2 {[%clk 0:01:57]}  Qb7+ {[%clk 0:01:01]} 25. Kg1 {[%clk 0:01:56]}  Qe4 {[%clk 0:00:59]} 26. Nf4 {[%clk 0:01:24]}  Bxe5 {[%clk 0:00:58]} 27. Rd7 {[%clk 0:00:59]}  Rfe8 {[%clk 0:00:50]} 28. Nh5 {[%clk 0:00:43]}  Kf8 {[%clk 0:00:48]} 29. Rcd1 {[%clk 0:00:40]}  Re7 {[%clk 0:00:45]} 30. Nf6 {[%clk 0:00:26]}  Bxf6 {[%clk 0:00:40]} 31. Bxf6 {[%clk 0:00:25]}  Rxd7 {[%clk 0:00:38]} 32. Rxd7 {[%clk 0:00:25]}  Qc6 {[%clk 0:00:13]} 33. Rxa7 {[%clk 0:00:20]}  e5 {[%clk 0:00:11]} 34. Be7+ {[%clk 0:00:18]}  Kg8 {[%clk 0:00:10]} 35. Qd3 {[%clk 0:00:16]}  e4 {[%clk 0:00:06]} 36. Qd5 {[%clk 0:00:16]}  Qxd5 {[%clk 0:00:05]} 37. cxd5 {[%clk 0:00:16]}  Ne5 {[%clk 0:00:06]} 38. d6 {[%clk 0:00:15]}  Nc6 {[%clk 0:00:03]} 39. Rb7 {[%clk 0:00:10]}  Nxe7 {[%clk 0:00:00]} 40. Rxe7 {[%clk 0:00:06]} 1-0


[Site "https://www.chess.com"]

[Event "Titled Tuesday Blitz May 16 Early 2023"]
[White "Orlov, Georgi"]
[Black "Remizov, Yaroslav"]
[WhiteFideId "2011271"]
[BlackFideId "34134015"]
[WhiteElo "2623"]
[BlackElo "2400"]
[Result "1-0"]
[Round "07"]
[TimeControl "180+2"]
[Date "2023.05.16"]
[WhiteClock "0:00:02"]
[BlackClock "0:00:02"]

1. d4 {[%clk 0:03:00]}  d6 {[%clk 0:02:58]} 2. Nf3 {[%clk 0:03:00]}  Nd7 {[%clk 0:02:58]} 3. e4 {[%clk 0:02:58]}  Ngf6 {[%clk 0:02:57]} 4. Nc3 {[%clk 0:02:58]}  e5 {[%clk 0:02:58]} 5. g3 {[%clk 0:02:55]}  b5 {[%clk 0:02:57]} 6. dxe5 {[%clk 0:02:48]}  b4 {[%clk 0:02:55]} 7. exf6 {[%clk 0:02:21]}  bxc3 {[%clk 0:02:55]} 8. Qd5 {[%clk 0:02:14]}  Rb8 {[%clk 0:02:43]} 9. fxg7 {[%clk 0:01:49]}  Bxg7 {[%clk 0:02:44]} 10. b3 {[%clk 0:01:49]}  O-O {[%clk 0:02:41]} 11. Bg5 {[%clk 0:01:44]}  Qe8 {[%clk 0:02:34]} 12. Bd3 {[%clk 0:01:43]}  Bb7 {[%clk 0:02:22]} 13. Qf5 {[%clk 0:01:39]}  Nc5 {[%clk 0:02:22]} 14. O-O-O {[%clk 0:01:24]}  Nxd3+ {[%clk 0:02:14]} 15. cxd3 {[%clk 0:01:21]}  Bc8 {[%clk 0:02:10]} 16. Qf4 {[%clk 0:01:20]}  Qb5 {[%clk 0:02:01]} 17. Kc2 {[%clk 0:01:05]}  Be6 {[%clk 0:01:44]} 18. Rb1 {[%clk 0:00:50]}  Qc5 {[%clk 0:01:44]} 19. Bf6 {[%clk 0:00:24]}  Qxf2+ {[%clk 0:01:42]} 20. Kxc3 {[%clk 0:00:24]}  Rb5 {[%clk 0:01:32]} 21. d4 {[%clk 0:00:14]}  c5 {[%clk 0:01:12]} 22. Bxg7 {[%clk 0:00:13]}  Rc8 {[%clk 0:00:36]} 23. d5 {[%clk 0:00:11]}  c4 {[%clk 0:00:31]} 24. bxc4 {[%clk 0:00:11]}  Rxb1 {[%clk 0:00:22]} 25. Rxb1 {[%clk 0:00:10]}  Qxa2 {[%clk 0:00:22]} 26. Nd2 {[%clk 0:00:06]}  Qa5+ {[%clk 0:00:05]} 27. Kd4 {[%clk 0:00:06]}  Kxg7 {[%clk 0:00:06]} 28. dxe6 {[%clk 0:00:05]}  Rc7 {[%clk 0:00:02]} 29. Rb5 {[%clk 0:00:03]}  Qa1+ {[%clk 0:00:01]} 30. Kd3 {[%clk 0:00:03]}  fxe6 {[%clk 0:00:02]} 31. Rg5+ {[%clk 0:00:03]}  Kh6 {[%clk 0:00:02]} 32. Qh4# {[%clk 0:00:02]} 1-0


[Site "https://www.chess.com"]

[Event "Titled Tuesday Blitz May 16 Early 2023"]
[White "Fernandez Guillen, Ernesto J."]
[Black "Sebag, Marie"]
[WhiteFideId "3512428"]
[BlackFideId "617822"]
[WhiteElo "2429"]
[BlackElo "2431"]
[Result "1-0"]
[Round "07"]
[TimeControl "180+2"]
[Date "2023.05.16"]
[WhiteClock "0:00:05"]
[BlackClock "0:00:00"]

1. e4 {[%clk 0:02:52]}  e5 {[%clk 0:02:59]} 2. Nf3 {[%clk 0:02:51]}  Nc6 {[%clk 0:02:58]} 3. d4 {[%clk 0:02:47]}  exd4 {[%clk 0:02:58]} 4. Bc4 {[%clk 0:02:47]}  Nf6 {[%clk 0:02:57]} 5. O-O {[%clk 0:02:48]}  Nxe4 {[%clk 0:02:54]} 6. Re1 {[%clk 0:02:48]}  d5 {[%clk 0:02:54]} 7. Bxd5 {[%clk 0:02:49]}  Qxd5 {[%clk 0:02:54]} 8. Nc3 {[%clk 0:02:50]}  Qa5 {[%clk 0:02:54]} 9. Nxe4 {[%clk 0:02:51]}  Be6 {[%clk 0:02:54]} 10. Bd2 {[%clk 0:02:52]}  Qd5 {[%clk 0:02:49]} 11. Bg5 {[%clk 0:02:52]}  Be7 {[%clk 0:02:43]} 12. Bxe7 {[%clk 0:02:49]}  Nxe7 {[%clk 0:02:42]} 13. Qxd4 {[%clk 0:02:49]}  O-O {[%clk 0:02:25]} 14. Nc5 {[%clk 0:02:42]}  Nf5 {[%clk 0:02:10]} 15. Qc3 {[%clk 0:02:28]}  Bc8 {[%clk 0:01:16]} 16. Rad1 {[%clk 0:02:23]}  Qc6 {[%clk 0:01:14]} 17. Ne5 {[%clk 0:02:19]}  Qf6 {[%clk 0:01:08]} 18. Qf3 {[%clk 0:02:14]}  Qg5 {[%clk 0:00:40]} 19. Ne4 {[%clk 0:01:20]}  Qe7 {[%clk 0:00:26]} 20. Qf4 {[%clk 0:01:19]}  Be6 {[%clk 0:00:20]} 21. Ng5 {[%clk 0:01:08]}  Rad8 {[%clk 0:00:19]} 22. Rxd8 {[%clk 0:00:47]}  Rxd8 {[%clk 0:00:19]} 23. h3 {[%clk 0:00:30]}  Qf6 {[%clk 0:00:18]} 24. Ng4 {[%clk 0:00:23]}  Qxb2 {[%clk 0:00:16]} 25. Nxe6 {[%clk 0:00:22]}  fxe6 {[%clk 0:00:15]} 26. Rxe6 {[%clk 0:00:22]}  Qxc2 {[%clk 0:00:15]} 27. Qg5 {[%clk 0:00:13]}  Rf8 {[%clk 0:00:12]} 28. Re5 {[%clk 0:00:08]}  Qd1+ {[%clk 0:00:10]} 29. Kh2 {[%clk 0:00:08]}  Qd6 {[%clk 0:00:10]} 30. f4 {[%clk 0:00:08]}  Nd4 {[%clk 0:00:10]} 31. h4 {[%clk 0:00:04]}  Nc6 {[%clk 0:00:09]} 32. Rf5 {[%clk 0:00:03]}  Rxf5 {[%clk 0:00:09]} 33. Qxf5 {[%clk 0:00:03]}  Ne7 {[%clk 0:00:09]} 34. Qe4 {[%clk 0:00:04]}  c6 {[%clk 0:00:08]} 35. g3 {[%clk 0:00:03]}  h6 {[%clk 0:00:07]} 36. Ne5 {[%clk 0:00:03]}  Nd5 {[%clk 0:00:06]} 37. Qe2 {[%clk 0:00:04]}  Nf6 {[%clk 0:00:06]} 38. Qc2 {[%clk 0:00:04]}  Qe6 {[%clk 0:00:06]} 39. Qb2 {[%clk 0:00:04]}  Qe7 {[%clk 0:00:05]} 40. Kg2 {[%clk 0:00:04]}  Nd5 {[%clk 0:00:05]} 41. Qb3 {[%clk 0:00:04]}  a6 {[%clk 0:00:04]} 42. a4 {[%clk 0:00:04]}  Qc7 {[%clk 0:00:04]} 43. a5 {[%clk 0:00:04]}  Qxa5 {[%clk 0:00:03]} 44. Qxb7 {[%clk 0:00:05]}  Qd2+ {[%clk 0:00:03]} 45. Kh3 {[%clk 0:00:06]}  Qe3 {[%clk 0:00:03]} 46. Qc8+ {[%clk 0:00:06]}  Kh7 {[%clk 0:00:04]} 47. Qf5+ {[%clk 0:00:06]}  Kg8 {[%clk 0:00:04]} 48. Qf7+ {[%clk 0:00:06]}  Kh7 {[%clk 0:00:04]} 49. h5 {[%clk 0:00:07]}  Qe1 {[%clk 0:00:03]} 50. Qf5+ {[%clk 0:00:06]}  Kg8 {[%clk 0:00:03]} 51. Qe6+ {[%clk 0:00:05]}  Kh7 {[%clk 0:00:02]} 52. Qg6+ {[%clk 0:00:05]}  Kg8 {[%clk 0:00:03]} 53. Qf7+ {[%clk 0:00:04]}  Kh7 {[%clk 0:00:03]} 54. Qg6+ {[%clk 0:00:04]}  Kg8 {[%clk 0:00:03]} 55. Kg4 {[%clk 0:00:04]}  Qd1+ {[%clk 0:00:03]} 56. Kf5 {[%clk 0:00:05]}  Qc2+ {[%clk 0:00:02]} 57. Ke6 {[%clk 0:00:05]}  Qxg6+ {[%clk 0:00:02]} 58. hxg6 {[%clk 0:00:05]}  a5 {[%clk 0:00:03]} 59. Nxc6 {[%clk 0:00:05]}  a4 {[%clk 0:00:03]} 60. Kxd5 {[%clk 0:00:05]}  a3 {[%clk 0:00:00]} 61. Nb4 {[%clk 0:00:05]} 1-0


[Site "https://www.chess.com"]

[Event "Titled Tuesday Blitz May 16 Early 2023"]
[White "wqws"]
[Black "Harsh Suresh"]
[BlackFideId "45018464"]
[WhiteElo "2608"]
[BlackElo "2209"]
[Result "1/2-1/2"]
[Round "07"]
[TimeControl "180+2"]
[Date "2023.05.16"]
[WhiteClock "0:00:08"]
[BlackClock "0:00:04"]

1. e4 {[%clk 0:03:00]}  c5 {[%clk 0:02:50]} 2. Nf3 {[%clk 0:03:00]}  g6 {[%clk 0:02:44]} 3. d4 {[%clk 0:03:00]}  cxd4 {[%clk 0:02:42]} 4. Nxd4 {[%clk 0:03:00]}  Nc6 {[%clk 0:02:42]} 5. c4 {[%clk 0:03:00]}  Nf6 {[%clk 0:02:29]} 6. Nc3 {[%clk 0:03:00]}  d6 {[%clk 0:02:24]} 7. Be3 {[%clk 0:02:59]}  Ng4 {[%clk 0:02:19]} 8. Qd2 {[%clk 0:02:23]}  Nxe3 {[%clk 0:02:16]} 9. Qxe3 {[%clk 0:02:23]}  Bg7 {[%clk 0:02:14]} 10. Nb3 {[%clk 0:02:07]}  a5 {[%clk 0:02:06]} 11. a4 {[%clk 0:02:02]}  O-O {[%clk 0:02:04]} 12. Be2 {[%clk 0:02:01]}  Nb4 {[%clk 0:02:00]} 13. Qd2 {[%clk 0:02:00]}  Be6 {[%clk 0:01:58]} 14. O-O {[%clk 0:01:57]}  Rc8 {[%clk 0:01:58]} 15. Nd5 {[%clk 0:01:55]}  Bxd5 {[%clk 0:01:56]} 16. exd5 {[%clk 0:01:55]}  Qb6 {[%clk 0:01:55]} 17. Rad1 {[%clk 0:01:51]}  Rc7 {[%clk 0:01:51]} 18. Nd4 {[%clk 0:01:47]}  Bxd4 {[%clk 0:01:50]} 19. Qxd4 {[%clk 0:01:48]}  Qxd4 {[%clk 0:01:51]} 20. Rxd4 {[%clk 0:01:47]}  Na6 {[%clk 0:01:47]} 21. h4 {[%clk 0:01:40]}  Nc5 {[%clk 0:01:46]} 22. Re1 {[%clk 0:01:39]}  Nxa4 {[%clk 0:01:42]} 23. Ra1 {[%clk 0:01:33]}  Nc5 {[%clk 0:01:42]} 24. Bd1 {[%clk 0:01:30]}  b6 {[%clk 0:01:42]} 25. Bc2 {[%clk 0:01:28]}  Rd8 {[%clk 0:01:34]} 26. h5 {[%clk 0:01:23]}  e5 {[%clk 0:01:30]} 27. dxe6 {[%clk 0:01:22]}  Nxe6 {[%clk 0:01:30]} 28. Rg4 {[%clk 0:01:19]}  d5 {[%clk 0:01:30]} 29. hxg6 {[%clk 0:01:14]}  hxg6 {[%clk 0:01:29]} 30. cxd5 {[%clk 0:01:13]}  Rxd5 {[%clk 0:01:27]} 31. Bb3 {[%clk 0:01:11]}  Re5 {[%clk 0:01:20]} 32. f4 {[%clk 0:01:09]}  Re3 {[%clk 0:01:04]} 33. Bxe6 {[%clk 0:00:51]}  Rxe6 {[%clk 0:01:05]} 34. f5 {[%clk 0:00:51]}  Rf6 {[%clk 0:00:58]} 35. fxg6 {[%clk 0:00:50]}  Rxg6 {[%clk 0:00:59]} 36. Rxg6+ {[%clk 0:00:41]}  fxg6 {[%clk 0:01:00]} 37. b4 {[%clk 0:00:30]}  axb4 {[%clk 0:00:50]} 38. Ra6 {[%clk 0:00:23]}  Rc6 {[%clk 0:00:37]} 39. Ra4 {[%clk 0:00:22]}  b5 {[%clk 0:00:28]} 40. Rxb4 {[%clk 0:00:22]}  Rb6 {[%clk 0:00:28]} 41. Kf2 {[%clk 0:00:23]}  Kf7 {[%clk 0:00:29]} 42. Ke3 {[%clk 0:00:23]}  Ke6 {[%clk 0:00:29]} 43. Kd4 {[%clk 0:00:20]}  Kd6 {[%clk 0:00:26]} 44. Rb3 {[%clk 0:00:20]}  Rb8 {[%clk 0:00:25]} 45. Rg3 {[%clk 0:00:20]}  Rg8 {[%clk 0:00:24]} 46. Rg5 {[%clk 0:00:20]}  Kc6 {[%clk 0:00:23]} 47. g4 {[%clk 0:00:20]}  Kb6 {[%clk 0:00:23]} 48. Kc3 {[%clk 0:00:17]}  Ka5 {[%clk 0:00:23]} 49. Kb3 {[%clk 0:00:17]}  Rg7 {[%clk 0:00:22]} 50. Ka3 {[%clk 0:00:18]}  Re7 {[%clk 0:00:06]} 51. Rxg6 {[%clk 0:00:17]}  Re3+ {[%clk 0:00:06]} 52. Kb2 {[%clk 0:00:18]}  Rg3 {[%clk 0:00:06]} 53. g5 {[%clk 0:00:17]}  Ka4 {[%clk 0:00:06]} 54. Rg8 {[%clk 0:00:16]}  Rg2+ {[%clk 0:00:07]} 55. Kc3 {[%clk 0:00:15]}  b4+ {[%clk 0:00:07]} 56. Kc4 {[%clk 0:00:16]}  Rg4+ {[%clk 0:00:05]} 57. Kc5 {[%clk 0:00:15]}  Ka3 {[%clk 0:00:02]} 58. g6 {[%clk 0:00:14]}  b3 {[%clk 0:00:02]} 59. Ra8+ {[%clk 0:00:13]}  Kb2 {[%clk 0:00:02]} 60. Ra6 {[%clk 0:00:09]}  Kc2 {[%clk 0:00:02]} 61. Kd5 {[%clk 0:00:06]}  b2 {[%clk 0:00:02]} 62. Rc6+ {[%clk 0:00:06]}  Kb1 {[%clk 0:00:03]} 63. Rb6 {[%clk 0:00:05]}  Ka2 {[%clk 0:00:02]} 64. Ke5 {[%clk 0:00:05]}  Rg3 {[%clk 0:00:01]} 65. Rxb2+ {[%clk 0:00:05]}  Kxb2 {[%clk 0:00:01]} 66. Kf6 {[%clk 0:00:06]}  Kc3 {[%clk 0:00:02]} 67. g7 {[%clk 0:00:06]}  Kd4 {[%clk 0:00:02]} 68. Kf7 {[%clk 0:00:07]}  Ke5 {[%clk 0:00:03]} 69. g8=Q {[%clk 0:00:07]}  Rxg8 {[%clk 0:00:04]} 70. Kxg8 {[%clk 0:00:08]} 1/2-1/2


[Site "https://www.chess.com"]

[Event "Titled Tuesday Blitz May 16 Early 2023"]
[White "Manukyan, Sargis V."]
[Black "Tanenbaum, Zachary"]
[WhiteFideId "13303465"]
[BlackFideId "2060850"]
[WhiteElo "2236"]
[BlackElo "2175"]
[Result "1-0"]
[Round "07"]
[TimeControl "180+2"]
[Date "2023.05.16"]
[WhiteClock "0:00:36"]
[BlackClock "0:00:05"]

1. d4 {[%clk 0:03:00]}  d5 {[%clk 0:03:00]} 2. c4 {[%clk 0:02:58]}  dxc4 {[%clk 0:03:01]} 3. e3 {[%clk 0:02:57]}  e5 {[%clk 0:03:00]} 4. Bxc4 {[%clk 0:02:55]}  Nc6 {[%clk 0:02:59]} 5. Nf3 {[%clk 0:02:49]}  e4 {[%clk 0:03:00]} 6. Qb3 {[%clk 0:02:24]}  Bb4+ {[%clk 0:02:58]} 7. Bd2 {[%clk 0:02:21]}  Bxd2+ {[%clk 0:02:53]} 8. Nfxd2 {[%clk 0:02:18]}  Qe7 {[%clk 0:02:53]} 9. Nc3 {[%clk 0:02:06]}  Nf6 {[%clk 0:02:53]} 10. Nd5 {[%clk 0:02:00]}  Nxd5 {[%clk 0:02:51]} 11. Bxd5 {[%clk 0:02:00]}  O-O {[%clk 0:01:25]} 12. Bxe4 {[%clk 0:01:54]}  Qg5 {[%clk 0:01:00]} 13. Rc1 {[%clk 0:01:37]}  Re8 {[%clk 0:00:47]} 14. Rc5 {[%clk 0:01:28]}  Qg4 {[%clk 0:00:36]} 15. Bxh7+ {[%clk 0:01:03]}  Kxh7 {[%clk 0:00:28]} 16. Qxf7 {[%clk 0:01:00]}  Re6 {[%clk 0:00:28]} 17. Nf3 {[%clk 0:00:42]}  Rg6 {[%clk 0:00:20]} 18. h3 {[%clk 0:00:39]}  Qxg2 {[%clk 0:00:12]} 19. Rh5+ {[%clk 0:00:36]}  Rh6 {[%clk 0:00:12]} 20. Ng5+ {[%clk 0:00:36]}  Qxg5 {[%clk 0:00:05]} 21. Rxg5 {[%clk 0:00:36]} 1-0


[Site "https://www.chess.com"]

[Event "Titled Tuesday Blitz May 16 Early 2023"]
[White "Badmatsyrenov, Oleg"]
[Black "Moksh Amit Doshi"]
[WhiteFideId "24115762"]
[BlackFideId "25064967"]
[WhiteElo "2396"]
[BlackElo "2297"]
[Result "1-0"]
[Round "07"]
[TimeControl "180+2"]
[Date "2023.05.16"]
[WhiteClock "0:01:57"]
[BlackClock "0:00:33"]

1. e4 {[%clk 0:03:00]}  e5 {[%clk 0:02:50]} 2. Nc3 {[%clk 0:03:00]}  Nf6 {[%clk 0:02:41]} 3. f4 {[%clk 0:03:00]}  d5 {[%clk 0:02:40]} 4. Qe2 {[%clk 0:02:59]}  d4 {[%clk 0:02:27]} 5. fxe5 {[%clk 0:02:59]}  dxc3 {[%clk 0:02:23]} 6. exf6 {[%clk 0:03:00]}  cxd2+ {[%clk 0:02:23]} 7. Bxd2 {[%clk 0:03:01]}  Qxf6 {[%clk 0:02:23]} 8. O-O-O {[%clk 0:03:01]}  Nc6 {[%clk 0:02:22]} 9. Nf3 {[%clk 0:03:00]}  Bg4 {[%clk 0:02:13]} 10. Bc3 {[%clk 0:02:53]}  Qe6 {[%clk 0:02:07]} 11. Qb5 {[%clk 0:02:45]}  Bd6 {[%clk 0:01:51]} 12. Bc4 {[%clk 0:02:30]}  Qh6+ {[%clk 0:01:49]} 13. Kb1 {[%clk 0:02:13]}  O-O {[%clk 0:01:43]} 14. h3 {[%clk 0:02:07]}  Bxf3 {[%clk 0:01:41]} 15. gxf3 {[%clk 0:02:07]}  Rab8 {[%clk 0:01:27]} 16. Rdg1 {[%clk 0:02:03]}  a6 {[%clk 0:00:33]} 17. Bxg7 {[%clk 0:01:57]} 1-0


[Site "https://www.chess.com"]